[Event "Late-Titled-Tuesday-Blitz-April-30-2024"]
[Site "Chess.com"]
[Date "2024.04.30"]
[Round "8"]
[White "kylelancman"]
[Black "aranibos"]
[Result "1-0"]
[WhiteElo "2510"]
[BlackElo "2317"]
[TimeControl "180+1"]
[EndTime "15:28:49 PDT"]
[Termination "kylelancman won on time"]

1. e4 {[%clk 0:03:00.9]} 1... c6 {[%clk 0:02:59.1]} 2. Nf3 {[%clk 0:03:00.6]}
2... d5 {[%clk 0:02:59.5]} 3. Nc3 {[%clk 0:03:01.1]} 3... Bg4 {[%clk 0:02:56.4]}
4. h3 {[%clk 0:03:00.3]} 4... Bxf3 {[%clk 0:02:56.4]} 5. Qxf3 {[%clk 0:03:01.2]}
5... e6 {[%clk 0:02:55.6]} 6. Be2 {[%clk 0:02:59.3]} 6... Nf6 {[%clk 0:02:54.5]}
7. O-O {[%clk 0:02:59.5]} 7... dxe4 {[%clk 0:02:53.2]} 8. Nxe4 {[%clk
0:02:59.1]} 8... Nxe4 {[%clk 0:02:53.8]} 9. Qxe4 {[%clk 0:02:59.6]} 9... Qd5
{[%clk 0:02:54.1]} 10. Qg4 {[%clk 0:02:51.6]} 10... h5 {[%clk 0:02:53.5]} 11.
Qa4 {[%clk 0:02:46.2]} 11... Nd7 {[%clk 0:02:48.8]} 12. Bf3 {[%clk 0:02:42.8]}
12... Qf5 {[%clk 0:02:23.2]} 13. Qe4 {[%clk 0:02:31.8]} 13... Qxe4 {[%clk
0:02:22.1]} 14. Bxe4 {[%clk 0:02:32.5]} 14... Nc5 {[%clk 0:02:20.1]} 15. Bf3
{[%clk 0:02:31.9]} 15... O-O-O {[%clk 0:02:20.7]} 16. Re1 {[%clk 0:02:28.2]}
16... g5 {[%clk 0:02:17.6]} 17. d3 {[%clk 0:02:23.2]} 17... g4 {[%clk
0:02:17.4]} 18. hxg4 {[%clk 0:02:19.6]} 18... hxg4 {[%clk 0:02:18]} 19. Bxg4
{[%clk 0:02:19.7]} 19... Bd6 {[%clk 0:02:17.3]} 20. g3 {[%clk 0:02:17.5]} 20...
Rdg8 {[%clk 0:02:14.2]} 21. Bf3 {[%clk 0:02:17.2]} 21... Nd7 {[%clk 0:01:42]}
22. d4 {[%clk 0:02:15.3]} 22... Nf6 {[%clk 0:01:39.7]} 23. Bd2 {[%clk
0:02:08.1]} 23... Bxg3 {[%clk 0:01:31.6]} 24. fxg3 {[%clk 0:02:04.4]} 24...
Rxg3+ {[%clk 0:01:32.2]} 25. Kf2 {[%clk 0:02:02.1]} 25... Rhh3 {[%clk
0:01:32.3]} 26. Re3 {[%clk 0:01:43.7]} 26... Rg8 {[%clk 0:00:53.9]} 27. Ke2
{[%clk 0:01:13.8]} 27... Rh2+ {[%clk 0:00:44.7]} 28. Kd3 {[%clk 0:01:13.4]}
28... c5 {[%clk 0:00:27.4]} 29. c3 {[%clk 0:00:52.1]} 29... Rd8 {[%clk
0:00:23.4]} 30. Rh1 {[%clk 0:00:49]} 30... Rxh1 {[%clk 0:00:19.2]} 31. Bxh1
{[%clk 0:00:49.9]} 31... cxd4 {[%clk 0:00:19.2]} 32. cxd4 {[%clk 0:00:50]} 32...
Ng4 {[%clk 0:00:19.3]} 33. Re2 {[%clk 0:00:44.6]} 33... e5 {[%clk 0:00:16.4]}
34. Bc3 {[%clk 0:00:40.7]} 34... f5 {[%clk 0:00:12.6]} 35. Kc2 {[%clk
0:00:24.4]} 35... e4 {[%clk 0:00:13]} 36. Bg2 {[%clk 0:00:21.5]} 36... Rg8
{[%clk 0:00:09.9]} 37. Bh3 {[%clk 0:00:21.1]} 37... Kd7 {[%clk 0:00:09.6]} 38.
Bxg4 {[%clk 0:00:20.9]} 38... Rxg4 {[%clk 0:00:08.7]} 39. Bd2 {[%clk 0:00:21.5]}
39... Kd6 {[%clk 0:00:08.5]} 40. Rf2 {[%clk 0:00:21.4]} 40... Ke6 {[%clk
0:00:08.2]} 41. Bf4 {[%clk 0:00:21.2]} 41... Kd5 {[%clk 0:00:06.3]} 42. Kc3
{[%clk 0:00:21.3]} 42... Rh4 {[%clk 0:00:05.3]} 43. Be5 {[%clk 0:00:19.2]} 43...
Rh3+ {[%clk 0:00:04.9]} 44. Kc2 {[%clk 0:00:19.3]} 44... Ke6 {[%clk 0:00:04.8]}
45. Rg2 {[%clk 0:00:18.1]} 45... b5 {[%clk 0:00:04.5]} 46. Kd2 {[%clk 0:00:17]}
46... b4 {[%clk 0:00:03.5]} 47. Rh2 {[%clk 0:00:16.3]} 47... Rd3+ {[%clk
0:00:03.7]} 48. Ke2 {[%clk 0:00:16.2]} 48... Rf3 {[%clk 0:00:03.6]} 49. b3
{[%clk 0:00:14.7]} 49... a5 {[%clk 0:00:03]} 50. Rh6+ {[%clk 0:00:15.1]} 50...
Ke7 {[%clk 0:00:02.7]} 51. Ra6 {[%clk 0:00:14]} 51... f4 {[%clk 0:00:02.8]} 52.
Rf6 {[%clk 0:00:13.4]} 52... Re3+ {[%clk 0:00:02.3]} 53. Kf2 {[%clk 0:00:13.3]}
53... Rf3+ {[%clk 0:00:01.7]} 54. Kg2 {[%clk 0:00:13.8]} 54... Rg3+ {[%clk
0:00:02]} 55. Kh2 {[%clk 0:00:14.4]} 55... e3 {[%clk 0:00:01.3]} 56. Bxf4 {[%clk
0:00:14.2]} 56... Rf3 {[%clk 0:00:00.6]} 57. Rf5 {[%clk 0:00:09.5]} 1-0

[Event "Late-Titled-Tuesday-Blitz-April-30-2024"]
[Site "Chess.com"]
[Date "2024.04.30"]
[Round "8"]
[White "HipsterChess22"]
[Black "realburq"]
[Result "0-1"]
[WhiteElo "2188"]
[BlackElo "2380"]
[TimeControl "180+1"]
[EndTime "15:28:50 PDT"]
[Termination "realburq won on time"]

1. d4 {[%clk 0:02:59]} 1... d5 {[%clk 0:02:59.2]} 2. Nc3 {[%clk 0:02:57.5]} 2...
c5 {[%clk 0:02:56.3]} 3. Bf4 {[%clk 0:02:53.2]} 3... Nf6 {[%clk 0:02:48.5]} 4.
e3 {[%clk 0:02:48.7]} 4... e6 {[%clk 0:02:48.1]} 5. Nb5 {[%clk 0:02:41.9]} 5...
Na6 {[%clk 0:02:46.8]} 6. c3 {[%clk 0:02:39.1]} 6... Be7 {[%clk 0:02:45.8]} 7.
a4 {[%clk 0:02:34.7]} 7... O-O {[%clk 0:02:45.1]} 8. Nf3 {[%clk 0:02:32.9]} 8...
Ne4 {[%clk 0:02:45]} 9. Be2 {[%clk 0:02:16.7]} 9... Bd7 {[%clk 0:02:18.2]} 10.
O-O {[%clk 0:02:14.6]} 10... Bxb5 {[%clk 0:01:58.5]} 11. axb5 {[%clk 0:02:15.5]}
11... Nc7 {[%clk 0:01:55.4]} 12. Nd2 {[%clk 0:02:01.9]} 12... Nxd2 {[%clk
0:01:50.6]} 13. Qxd2 {[%clk 0:02:02.8]} 13... c4 {[%clk 0:01:50.8]} 14. b3
{[%clk 0:01:55.8]} 14... cxb3 {[%clk 0:01:48.3]} 15. Rfb1 {[%clk 0:01:53.1]}
15... Ne8 {[%clk 0:01:34.6]} 16. c4 {[%clk 0:01:45.5]} 16... dxc4 {[%clk
0:01:33.1]} 17. Bxc4 {[%clk 0:01:45.9]} 17... Bd6 {[%clk 0:01:33.4]} 18. Bxd6
{[%clk 0:01:33.4]} 18... Nxd6 {[%clk 0:01:32.9]} 19. Bxb3 {[%clk 0:01:33.9]}
19... Nxb5 {[%clk 0:01:28.2]} 20. Bxe6 {[%clk 0:01:28.6]} 20... Nxd4 {[%clk
0:01:15.6]} 21. Bxf7+ {[%clk 0:01:26.9]} 21... Rxf7 {[%clk 0:01:14.6]} 22. Qxd4
{[%clk 0:01:26.2]} 22... Qxd4 {[%clk 0:01:10.3]} 23. exd4 {[%clk 0:01:27.1]}
23... a6 {[%clk 0:01:01]} 24. Rb6 {[%clk 0:01:24.4]} 24... Rd7 {[%clk
0:00:59.7]} 25. Rab1 {[%clk 0:01:18.2]} 25... Ra7 {[%clk 0:00:58.9]} 26. g3
{[%clk 0:01:15]} 26... a5 {[%clk 0:00:54.7]} 27. d5 {[%clk 0:01:11.9]} 27... a4
{[%clk 0:00:49.8]} 28. d6 {[%clk 0:01:11.9]} 28... a3 {[%clk 0:00:48.1]} 29. Ra1
{[%clk 0:01:10.4]} 29... a2 {[%clk 0:00:45.8]} 30. Rb2 {[%clk 0:01:07.3]} 30...
Rxd6 {[%clk 0:00:45.2]} 31. Rbxa2 {[%clk 0:01:02.9]} 31... Rda6 {[%clk
0:00:43.9]} 32. Rxa6 {[%clk 0:01:00.2]} 32... bxa6 {[%clk 0:00:40.6]} 33. Ra5
{[%clk 0:00:58.6]} 33... Kf7 {[%clk 0:00:40.7]} 34. f4 {[%clk 0:00:57.9]} 34...
Ke6 {[%clk 0:00:40.8]} 35. Kf2 {[%clk 0:00:58]} 35... Kd6 {[%clk 0:00:41.2]} 36.
Ke3 {[%clk 0:00:55.4]} 36... Kc6 {[%clk 0:00:41.8]} 37. Ke4 {[%clk 0:00:51]}
37... Kb6 {[%clk 0:00:41.7]} 38. Ra1 {[%clk 0:00:50.7]} 38... a5 {[%clk
0:00:41.8]} 39. Kd5 {[%clk 0:00:47.4]} 39... a4 {[%clk 0:00:39.2]} 40. Kc4
{[%clk 0:00:38.4]} 40... Ka5 {[%clk 0:00:39.1]} 41. Kc3 {[%clk 0:00:25.5]} 41...
Rc7+ {[%clk 0:00:38]} 42. Kb2 {[%clk 0:00:25.4]} 42... Kb4 {[%clk 0:00:38.2]}
43. Re1 {[%clk 0:00:17.2]} 43... a3+ {[%clk 0:00:37.8]} 44. Ka1 {[%clk
0:00:14.5]} 44... Rc3 {[%clk 0:00:33.5]} 45. Ka2 {[%clk 0:00:10.8]} 45... Rc2+
{[%clk 0:00:33.3]} 46. Kb1 {[%clk 0:00:09.9]} 46... Rb2+ {[%clk 0:00:33.1]} 47.
Ka1 {[%clk 0:00:09.3]} 47... Rxh2 {[%clk 0:00:30.3]} 48. Re7 {[%clk 0:00:09.2]}
48... g6 {[%clk 0:00:28.8]} 49. Rb7+ {[%clk 0:00:07.2]} 49... Kc3 {[%clk
0:00:26.9]} 50. Rc7+ {[%clk 0:00:06]} 50... Kd4 {[%clk 0:00:26]} 51. Ra7 {[%clk
0:00:04.7]} 51... a2 {[%clk 0:00:25.8]} 52. g4 {[%clk 0:00:02.1]} 52... Ke4
{[%clk 0:00:25.5]} 53. Ra4+ {[%clk 0:00:01.9]} 53... Kd5 {[%clk 0:00:20.7]} 54.
f5 {[%clk 0:00:02.8]} 54... gxf5 {[%clk 0:00:20.6]} 55. gxf5 {[%clk 0:00:03.7]}
55... Ke5 {[%clk 0:00:21.1]} 56. Ra5+ {[%clk 0:00:02.8]} 56... Kf6 {[%clk
0:00:21.5]} 0-1

[Event "Late-Titled-Tuesday-Blitz-April-30-2024"]
[Site "Chess.com"]
[Date "2024.04.30"]
[Round "8"]
[White "oskariot"]
[Black "Sanan_Sjugirov"]
[Result "1-0"]
[WhiteElo "2764"]
[BlackElo "2985"]
[TimeControl "180+1"]
[EndTime "15:28:53 PDT"]
[Termination "oskariot won by checkmate"]

1. e4 {[%clk 0:03:00.9]} 1... c6 {[%clk 0:02:59.2]} 2. d4 {[%clk 0:02:57.9]}
2... d5 {[%clk 0:02:59.5]} 3. Nd2 {[%clk 0:02:57.8]} 3... dxe4 {[%clk
0:02:59.4]} 4. Nxe4 {[%clk 0:02:58.7]} 4... Nf6 {[%clk 0:03:00.1]} 5. Nxf6+
{[%clk 0:02:59.4]} 5... exf6 {[%clk 0:03:01]} 6. Be2 {[%clk 0:03:00.1]} 6... Bd6
{[%clk 0:03:00.2]} 7. Bf3 {[%clk 0:03:01]} 7... O-O {[%clk 0:02:59]} 8. Ne2
{[%clk 0:03:01.9]} 8... Re8 {[%clk 0:02:57.8]} 9. O-O {[%clk 0:03:02]} 9... Qc7
{[%clk 0:02:57.2]} 10. h3 {[%clk 0:03:01]} 10... Nd7 {[%clk 0:02:56.6]} 11. c4
{[%clk 0:03:01]} 11... Nf8 {[%clk 0:02:46.5]} 12. c5 {[%clk 0:02:59.7]} 12...
Be7 {[%clk 0:02:46.8]} 13. Bf4 {[%clk 0:02:59.3]} 13... Qd8 {[%clk 0:02:47.4]}
14. b4 {[%clk 0:02:59.4]} 14... Ne6 {[%clk 0:02:45.9]} 15. Be3 {[%clk
0:02:59.2]} 15... Nc7 {[%clk 0:02:42.9]} 16. Nc3 {[%clk 0:02:56.5]} 16... Be6
{[%clk 0:02:42.9]} 17. a4 {[%clk 0:02:56.1]} 17... Nd5 {[%clk 0:02:32.4]} 18.
Bxd5 {[%clk 0:02:55.8]} 18... Bxd5 {[%clk 0:02:33.3]} 19. Re1 {[%clk 0:02:55.8]}
19... Qd7 {[%clk 0:02:28.9]} 20. b5 {[%clk 0:02:39.8]} 20... Be6 {[%clk
0:02:21.9]} 21. Qf3 {[%clk 0:02:31.5]} 21... f5 {[%clk 0:02:18.4]} 22. Rad1
{[%clk 0:01:59.2]} 22... Bf6 {[%clk 0:01:59.9]} 23. d5 {[%clk 0:01:20.6]} 23...
Bxc3 {[%clk 0:01:58.1]} 24. dxe6 {[%clk 0:01:21.2]} 24... Qxe6 {[%clk
0:01:58.5]} 25. Bd2 {[%clk 0:01:21.9]} 25... Be5 {[%clk 0:01:47.5]} 26. Bf4
{[%clk 0:01:18.7]} 26... f6 {[%clk 0:01:46.5]} 27. Rd6 {[%clk 0:01:13.7]} 27...
Qc4 {[%clk 0:01:37.1]} 28. Bxe5 {[%clk 0:01:13.4]} 28... fxe5 {[%clk 0:01:30.3]}
29. bxc6 {[%clk 0:01:05.7]} 29... bxc6 {[%clk 0:01:28.7]} 30. Rxc6 {[%clk
0:01:01.5]} 30... Qxa4 {[%clk 0:01:20]} 31. Qd5+ {[%clk 0:00:53.9]} 31... Kh8
{[%clk 0:01:19.5]} 32. Rd6 {[%clk 0:00:54]} 32... Qa5 {[%clk 0:01:07]} 33. Rd1
{[%clk 0:00:47.4]} 33... Rac8 {[%clk 0:01:03.4]} 34. Rc6 {[%clk 0:00:23.7]}
34... h6 {[%clk 0:00:42.1]} 35. Rc1 {[%clk 0:00:17.2]} 35... Qa3 {[%clk
0:00:17.3]} 36. Rd1 {[%clk 0:00:16.3]} 36... Qc3 {[%clk 0:00:11.3]} 37. Rd3
{[%clk 0:00:06.9]} 37... Qc1+ {[%clk 0:00:10.4]} 38. Kh2 {[%clk 0:00:06.8]}
38... Qf4+ {[%clk 0:00:09.6]} 39. Kg1 {[%clk 0:00:06.8]} 39... e4 {[%clk
0:00:08.8]} 40. Rd1 {[%clk 0:00:06.6]} 40... e3 {[%clk 0:00:08.6]} 41. fxe3
{[%clk 0:00:07.5]} 41... Qxe3+ {[%clk 0:00:09.3]} 42. Kh1 {[%clk 0:00:07.8]}
42... Qe2 {[%clk 0:00:05.1]} 43. Rd6 {[%clk 0:00:02.9]} 43... f4 {[%clk
0:00:03.7]} 44. Qd4 {[%clk 0:00:02.7]} 44... f3 {[%clk 0:00:03.7]} 45. Rxh6+
{[%clk 0:00:03.2]} 45... Kg8 {[%clk 0:00:04]} 46. Qd5+ {[%clk 0:00:03.8]} 46...
Kf8 {[%clk 0:00:03.5]} 47. Rh8+ {[%clk 0:00:04.3]} 47... Ke7 {[%clk 0:00:04.3]}
48. Qd6+ {[%clk 0:00:04.9]} 48... Kf7 {[%clk 0:00:05]} 49. Qd5+ {[%clk
0:00:05.2]} 49... Kg6 {[%clk 0:00:05.2]} 50. Qh5+ {[%clk 0:00:05.3]} 50... Kf6
{[%clk 0:00:05.3]} 51. Rd6+ {[%clk 0:00:05.7]} 51... Re6 {[%clk 0:00:05.6]} 52.
Rxe6+ {[%clk 0:00:03.7]} 52... Kxe6 {[%clk 0:00:06.5]} 53. Qg4+ {[%clk
0:00:03.9]} 53... Kf7 {[%clk 0:00:06.6]} 54. Rxc8 {[%clk 0:00:04.5]} 54... Qe1+
{[%clk 0:00:04.7]} 55. Kh2 {[%clk 0:00:04.9]} 55... f2 {[%clk 0:00:05.1]} 56.
Qf5+ {[%clk 0:00:05.2]} 56... Ke7 {[%clk 0:00:05.8]} 57. Rc7+ {[%clk 0:00:05.7]}
57... Ke8 {[%clk 0:00:05.8]} 58. Qf7+ {[%clk 0:00:06.1]} 58... Kd8 {[%clk
0:00:06.2]} 59. Qd7# {[%clk 0:00:07]} 1-0

[Event "Late-Titled-Tuesday-Blitz-April-30-2024"]
[Site "Chess.com"]
[Date "2024.04.30"]
[Round "8"]
[White "mishanick"]
[Black "Polish_fighter3000"]
[Result "1-0"]
[WhiteElo "3125"]
[BlackElo "3081"]
[TimeControl "180+1"]
[EndTime "15:28:54 PDT"]
[Termination "mishanick won by resignation"]

1. d4 {[%clk 0:03:00.9]} 1... Nf6 {[%clk 0:02:34]} 2. c4 {[%clk 0:03:01.2]} 2...
e6 {[%clk 0:02:34.9]} 3. Nc3 {[%clk 0:03:01.5]} 3... Bb4 {[%clk 0:02:35.1]} 4.
e3 {[%clk 0:03:01.9]} 4... O-O {[%clk 0:02:32.5]} 5. Bd3 {[%clk 0:03:02.5]} 5...
Bxc3+ {[%clk 0:02:28.5]} 6. bxc3 {[%clk 0:03:02.4]} 6... d6 {[%clk 0:02:29.4]}
7. Ne2 {[%clk 0:03:01.2]} 7... e5 {[%clk 0:02:28.5]} 8. O-O {[%clk 0:03:01.7]}
8... e4 {[%clk 0:02:24.7]} 9. Bc2 {[%clk 0:03:01.6]} 9... Re8 {[%clk 0:02:24.6]}
10. f3 {[%clk 0:03:01.4]} 10... Bf5 {[%clk 0:02:01.5]} 11. Ng3 {[%clk
0:02:47.7]} 11... Bg6 {[%clk 0:01:58.4]} 12. f4 {[%clk 0:02:21.2]} 12... h6
{[%clk 0:01:58.6]} 13. f5 {[%clk 0:02:21.7]} 13... Bh7 {[%clk 0:01:58.7]} 14.
Rf4 {[%clk 0:02:22.3]} 14... Nbd7 {[%clk 0:01:46.8]} 15. Nxe4 {[%clk 0:02:19.7]}
15... Nxe4 {[%clk 0:01:45.5]} 16. Bxe4 {[%clk 0:02:19.5]} 16... Rxe4 {[%clk
0:01:45.6]} 17. Rxe4 {[%clk 0:02:18.1]} 17... Bxf5 {[%clk 0:01:46.1]} 18. Rf4
{[%clk 0:02:18.7]} 18... Bg6 {[%clk 0:01:46.8]} 19. Qf3 {[%clk 0:01:58.8]} 19...
Rb8 {[%clk 0:01:47]} 20. e4 {[%clk 0:01:54.4]} 20... Qe7 {[%clk 0:01:45.7]} 21.
Ba3 {[%clk 0:01:29.8]} 21... Qe6 {[%clk 0:01:39.4]} 22. c5 {[%clk 0:01:26]}
22... dxc5 {[%clk 0:01:37.8]} 23. Bxc5 {[%clk 0:01:25.1]} 23... Nxc5 {[%clk
0:01:34.9]} 24. dxc5 {[%clk 0:01:25.1]} 24... Re8 {[%clk 0:01:34.6]} 25. Re1
{[%clk 0:01:05.9]} 25... Qxa2 {[%clk 0:01:33.9]} 26. e5 {[%clk 0:01:06.5]} 26...
Qd2 {[%clk 0:01:28.1]} 27. Qe3 {[%clk 0:01:02.5]} 27... Qd5 {[%clk 0:01:26.6]}
28. h3 {[%clk 0:01:00.4]} 28... Kh7 {[%clk 0:01:24.4]} 29. Qd4 {[%clk
0:00:49.2]} 29... Qc6 {[%clk 0:01:18.6]} 30. Kh2 {[%clk 0:00:49.1]} 30... Re7
{[%clk 0:01:15.7]} 31. h4 {[%clk 0:00:44]} 31... h5 {[%clk 0:01:07.7]} 32. c4
{[%clk 0:00:34.9]} 32... Rd7 {[%clk 0:01:05.9]} 33. Qf2 {[%clk 0:00:34.4]} 33...
Qe6 {[%clk 0:01:05.9]} 34. Re3 {[%clk 0:00:28.7]} 34... Rd1 {[%clk 0:01:01.5]}
35. Qf3 {[%clk 0:00:26.9]} 35... Rb1 {[%clk 0:00:55.3]} 36. Qd5 {[%clk
0:00:24.4]} 36... Bf5 {[%clk 0:00:43.9]} 37. Ref3 {[%clk 0:00:24.3]} 37... g6
{[%clk 0:00:34.8]} 38. Qxe6 {[%clk 0:00:19.7]} 38... fxe6 {[%clk 0:00:26]} 39.
Rd4 {[%clk 0:00:19.2]} 39... Kh6 {[%clk 0:00:25.9]} 40. Rd7 {[%clk 0:00:19.2]}
40... c6 {[%clk 0:00:26.1]} 41. Rf7 {[%clk 0:00:15.7]} 41... Re1 {[%clk
0:00:15.1]} 42. Rb3 {[%clk 0:00:14.7]} 42... Re4 {[%clk 0:00:10.2]} 43. g3
{[%clk 0:00:13]} 43... Rxe5 {[%clk 0:00:03.8]} 44. Rbxb7 {[%clk 0:00:13.4]}
44... g5 {[%clk 0:00:04.4]} 45. Rf6+ {[%clk 0:00:09]} 45... Bg6 {[%clk 0:00:05]}
46. Re7 {[%clk 0:00:08.4]} 46... gxh4 {[%clk 0:00:04.9]} 47. Rexe6 {[%clk
0:00:08.9]} 47... hxg3+ {[%clk 0:00:04.6]} 48. Kxg3 {[%clk 0:00:09.8]} 48...
Rg5+ {[%clk 0:00:03.4]} 49. Kh2 {[%clk 0:00:06.7]} 49... a5 {[%clk 0:00:03.1]}
50. Rxc6 {[%clk 0:00:06.9]} 50... a4 {[%clk 0:00:03.4]} 51. Ra6 {[%clk
0:00:06.8]} 51... Kg7 {[%clk 0:00:03.6]} 52. Rfc6 {[%clk 0:00:05.8]} 52... Bf7
{[%clk 0:00:02.7]} 53. Rc7 {[%clk 0:00:06]} 53... Rg4 {[%clk 0:00:01.5]} 54.
Rxa4 {[%clk 0:00:05.8]} 54... Kg6 {[%clk 0:00:01.5]} 55. Ra6+ {[%clk 0:00:06]}
55... Kg7 {[%clk 0:00:02.1]} 56. Raa7 {[%clk 0:00:06.4]} 56... Rf4 {[%clk
0:00:02.8]} 57. c6 {[%clk 0:00:07]} 1-0

[Event "Late-Titled-Tuesday-Blitz-April-30-2024"]
[Site "Chess.com"]
[Date "2024.04.30"]
[Round "8"]
[White "nicolasbatista3"]
[Black "Iskusnyh"]
[Result "1-0"]
[WhiteElo "2458"]
[BlackElo "2610"]
[TimeControl "180+1"]
[EndTime "15:28:55 PDT"]
[Termination "nicolasbatista3 won on time"]

1. d4 {[%clk 0:03:00.9]} 1... d5 {[%clk 0:02:59.6]} 2. c4 {[%clk 0:03:01]} 2...
c6 {[%clk 0:02:59.8]} 3. Nc3 {[%clk 0:03:00.5]} 3... Nf6 {[%clk 0:02:59.4]} 4.
Nf3 {[%clk 0:02:57.9]} 4... e6 {[%clk 0:02:59.3]} 5. Bg5 {[%clk 0:02:57.2]} 5...
Nbd7 {[%clk 0:02:57.9]} 6. e3 {[%clk 0:02:55.1]} 6... h6 {[%clk 0:02:55]} 7. Bh4
{[%clk 0:02:54]} 7... Be7 {[%clk 0:02:46.6]} 8. cxd5 {[%clk 0:02:53.5]} 8...
Nxd5 {[%clk 0:02:44.1]} 9. Bg3 {[%clk 0:02:40.2]} 9... Qa5 {[%clk 0:02:29.4]}
10. Qc2 {[%clk 0:02:21.5]} 10... Bb4 {[%clk 0:02:27.2]} 11. Rc1 {[%clk
0:02:07.9]} 11... Qxa2 {[%clk 0:02:26.3]} 12. Bd3 {[%clk 0:02:04.1]} 12... b6
{[%clk 0:01:51.6]} 13. O-O {[%clk 0:01:57.6]} 13... Nxc3 {[%clk 0:01:50.9]} 14.
bxc3 {[%clk 0:01:58.5]} 14... Qxc2 {[%clk 0:01:51]} 15. Rxc2 {[%clk 0:01:59.4]}
15... Be7 {[%clk 0:01:50.4]} 16. Ra1 {[%clk 0:01:50.9]} 16... Bb7 {[%clk
0:01:50.2]} 17. Rca2 {[%clk 0:01:47.7]} 17... a5 {[%clk 0:01:49.6]} 18. Nd2
{[%clk 0:01:40.4]} 18... Ba6 {[%clk 0:01:32.8]} 19. c4 {[%clk 0:01:33.8]} 19...
c5 {[%clk 0:01:28.9]} 20. Ne4 {[%clk 0:01:23.1]} 20... O-O {[%clk 0:01:27.8]}
21. Bf1 {[%clk 0:01:20.9]} 21... Rfc8 {[%clk 0:01:25.8]} 22. d5 {[%clk
0:01:18.2]} 22... exd5 {[%clk 0:01:25]} 23. cxd5 {[%clk 0:01:19.1]} 23... Bxf1
{[%clk 0:01:24.3]} 24. Kxf1 {[%clk 0:01:20]} 24... Nf6 {[%clk 0:01:18.5]} 25.
Nc3 {[%clk 0:01:18.9]} 25... c4 {[%clk 0:01:16.3]} 26. d6 {[%clk 0:01:14.7]}
26... Bd8 {[%clk 0:01:15.5]} 27. e4 {[%clk 0:01:11.9]} 27... Nd7 {[%clk
0:01:13.4]} 28. Nd5 {[%clk 0:01:07.7]} 28... b5 {[%clk 0:01:06.6]} 29. Nc7
{[%clk 0:01:00.3]} 29... Bxc7 {[%clk 0:01:01.4]} 30. dxc7 {[%clk 0:01:01.2]}
30... Nf6 {[%clk 0:00:37.3]} 31. Rxa5 {[%clk 0:00:58.9]} 31... Rxa5 {[%clk
0:00:35.7]} 32. Rxa5 {[%clk 0:00:59.4]} 32... Nxe4 {[%clk 0:00:36]} 33. Bf4
{[%clk 0:00:46.8]} 33... g5 {[%clk 0:00:35.6]} 34. Be5 {[%clk 0:00:43.4]} 34...
f6 {[%clk 0:00:35.6]} 35. Bg3 {[%clk 0:00:13.9]} 35... Nxg3+ {[%clk 0:00:34]}
36. hxg3 {[%clk 0:00:14.1]} 36... Rxc7 {[%clk 0:00:34.2]} 37. Rxb5 {[%clk
0:00:14.5]} 37... c3 {[%clk 0:00:34]} 38. Rb1 {[%clk 0:00:15.1]} 38... Kf7
{[%clk 0:00:34.4]} 39. Ke2 {[%clk 0:00:14.5]} 39... Ke6 {[%clk 0:00:31.4]} 40.
Kd3 {[%clk 0:00:14.6]} 40... Kd5 {[%clk 0:00:22.4]} 41. Rb5+ {[%clk 0:00:13.3]}
41... Kd6 {[%clk 0:00:20.5]} 42. Rb6+ {[%clk 0:00:13]} 42... Ke5 {[%clk
0:00:18.1]} 43. Rb5+ {[%clk 0:00:11.2]} 43... Ke6 {[%clk 0:00:18.3]} 44. Kc2
{[%clk 0:00:08.7]} 44... h5 {[%clk 0:00:17]} 45. f4 {[%clk 0:00:05.6]} 45... h4
{[%clk 0:00:11.1]} 46. fxg5 {[%clk 0:00:04]} 46... f5 {[%clk 0:00:11.2]} 47.
gxh4 {[%clk 0:00:03.5]} 47... Rc4 {[%clk 0:00:11.3]} 48. h5 {[%clk 0:00:02.2]}
48... Rg4 {[%clk 0:00:10.2]} 49. g6 {[%clk 0:00:02.7]} 49... Rxg2+ {[%clk
0:00:10.4]} 50. Kxc3 {[%clk 0:00:03.3]} 50... Rg5 {[%clk 0:00:09]} 51. Rb6+
{[%clk 0:00:02.4]} 51... Ke7 {[%clk 0:00:08.7]} 52. h6 {[%clk 0:00:02.9]} 52...
f4 {[%clk 0:00:05.6]} 53. h7 {[%clk 0:00:02.7]} 53... Rg2 {[%clk 0:00:02.9]} 54.
h8=Q {[%clk 0:00:02.6]} 1-0